{"text_format":"1","workbook":"xlsx","n_sheets":1,"sheets":["Ressursbruk sammenlikning"],"not_rendered":{"charts":0,"images":0,"macros":0,"external_links":0,"defined_names":0,"comments":1,"pivot_tables":0},"unopened":[],"bounds":{"document_bytes":16777216,"sheet_cells":100000,"rows_first":2000,"rows_last":500,"rows_between":2000,"halvings":0,"cell_chars":16384,"cell_head_chars":4096},"cells_cut":0,"cells_raw":0,"read":"whole","date_system":"1900"}

{"sheet":"Ressursbruk sammenlikning","index":0,"n_rows":43,"n_cols":9,"rows_kept":43,"cut":false,"hidden":false,"merged":[]}
[]
["Ressursbruken som følge av foreslått modell skoleåret 2020/2021: 441 % stilling totalt."]
["Til sammenlikning var ressursbruken skoleåret 2019/2020 314 % stilling totalt, pluss kroner 67 000,- i kronetillegg (øst)."]
["Skole","Ansatte (faste m/ansettelsesprosent per 20.04.2020)","X0,1%","Start 5%","Risikofaktor 1-3","Sum kolonne C-E:",null,"Ressurbruk i 2019/2020","Kronetilegg i 2019/2020 (Øst)"]
["Alta vgs",209,20.90,5,10,35.50,null,20]
["Bardufoss vgs",103,{"$f":"B6*0.1","v":10.30},5,10,{"$f":"SUM(C6:E6)","v":25.30},null,25.30]
["Breivang vgs",73,{"$f":"B7*0.1","v":7.3000000000000007},5,5,{"$f":"SUM(C7:E7)","v":17.30},null,17.30]
["Fagskolen i Troms",36,3.60,5,5,13.60,null,0]
["Hammerfest vgs",94,9.40,5,10,24.40,null,15]
["Heggen vgs",84,8.40,5,5,18.40,null,13.40]
["Ishavsbyen vgs",167,16.70,5,10,31.70,null,31.70]
["Kirkenes vgs",137,13.70,5,10,28.70,null,42]
["Kongsbakken vgs",113,11.30,5,0,16.30,null,16.30]
["Kvaløya vgs",93,9.3000000000000007,5,5,19.30,null,19.30]
["Lakselv vgs",52,5.20,5,5,15.20,null,0,"5000,-"]
["Nordkapp vgs",64,6.40,5,5,16.40,null,0,"5000,-"]
["Nordkjosbotn vgs",43,4.30,5,5,{"$f":"SUM(C17:E17)","v":14.30},null,14.30]
["Nord-Troms vgs",88,8.8000000000000007,5,5,18.80,null,18.80]
["Pasvik folkeshøgskole",19,1.90,5,0,6.90,null,0]
["Senja vgs",142,14.20,5,10,29.200000000000003,null,29.20]
["Sjøvegan vgs",67,6.70,5,5,{"$f":"SUM(C21:E21)","v":16.70}]
["SMI vgs",24,2.4000000000000004,5,0,7.40,null,7.40]
["StangnesRå vgs",156,15.60,5,10,30.60,null,30.60]
["Tana vgs",35,3.50,5,5,13.50,null,0,"10 000,-?"]
["Tromsdalen vgs",82,8.2000000000000011,5,0,13.20,null,13.20]
["Vadsø vgs",59,5.90,5,5,{"$f":"SUM(C26:E26)","v":15.90},null,0,"48 000,- "]
["Vardø vgs",30,3,5,5,13,null,0]
["Sum Totalt",null,null,null,null,{"$f":"SUM(F5:F27)","v":441.59999999999991},null,{"$f":"SUM(H5:H27)","v":313.80},"68 000,-"]
[]
[]
[]
[]
[]
[null,null,null,"Om risikofaktor: "]
[null,null,null,"Det siste strekpunktet – risikofaktoren - er ment å ta høyde for skoler med risikoutsatte fag eller andre forhold som stiller særlige krav til HMS-arbeidet."]
[null,null,null,null,"Faktor 1/ingen tillegg: Eksempelvis rene studspes.skoler (risiko ifm kjemilab/naturfagslab ivaretatt av 5% stoffkartotekressurs i tillegg til verneombudet"]
[]
[null,null,null,"Risikofaktor 2 (5%) gis til skoler som innfrir ett eller to av kriterier under:"]
[null,null,null,"Risikofaktor 3 (10%) gis til skoler som innfrir tre eller fire av kriteriene under:"]
[null,null,null,"1)      Tung yrkesfaglig skole og/eller krav om ISO-sertifisering "]
[null,null,null,"2)      Geografisk spredte lokaler"]
[null,null,null,"3)      Økt behov for forebygging av utagering, vold og trusler"]
[null,null,null,"4)      Byggeprosjekter/stor omstilling som er inngripende i arbeidsmiljøet inneværende skoleår"]